fUST/lending_fUST_20250619
["ID","MTS","AMOUNT","RATE_DAILY","PERIOD"]
[366536977,1750310978982,-460.0,0.00021917,6]
[366536978,1750310979004,-460.0,0.00021917,6]
[366536979,1750310979027,-460.0,0.00021917,6]
[366536980,1750310979048,-460.0,0.00021917,6]
[366536981,1750310979071,-2267.91,0.00021917,6]
[366536982,1750310979094,-460.0,0.00021917,6]
[366536983,1750310979117,-460.0,0.00021917,6]
[366536984,1750310979140,-460.0,0.00021917,6]
[366536985,1750310979162,-460.0,0.00021917,6]
[366536986,1750310979183,-452.41004517,0.00021917,6]
[366536987,1750310979206,-938.2,0.00021917,6]
[366536988,1750310979228,-460.0,0.00021917,6]
[366536989,1750310979250,-500.0,0.00021973,2]
[366536990,1750310979271,-210.04733853,0.00021973,2]
[366536991,1750310979294,-500.0,0.00021973,2]
[366536992,1750310979315,-500.4410408,0.00021973,2]
[366536993,1750310979462,460.0,0.00021917,6]
[366536994,1750310979584,460.0,0.00021917,6]
[366536995,1750310979674,460.0,0.00021917,6]
[366536996,1750310979722,206.43,0.00018737,2]
[366536997,1750310979751,412.86,0.00019629,2]
[366536998,1750310979793,619.29,0.00020521,2]
[366536999,1750310979831,825.73,0.00021413,2]
[366537000,1750310979952,460.0,0.00021917,6]
[366537001,1750310981425,460.0,0.00021917,6]
[366537002,1750310983262,460.0,0.00021917,6]
[366537003,1750310983634,460.0,0.00021917,6]
[366537004,1750310985077,460.0,0.00021917,6]
[366537005,1750310988702,708.33,0.00021917,6]
[366537006,1750310988984,460.0,0.00021917,6]
[366537007,1750310990814,460.0,0.00021917,6]
[366537008,1750310994603,300.0,0.00021917,2]
[366537009,1750310994935,460.0,0.00021917,6]
[366537010,1750310996787,482.09840304,0.00021917,6]
[366537011,1750311002479,474.26,0.00021917,6]
[366537012,1750311002563,460.0,0.00021917,6]
[366537013,1750311004122,886.52,0.00021917,6]
[366537014,1750311007781,207.4,0.00021915,2]
[366537015,1750311009052,460.0,0.00021917,6]
[366537016,1750311010385,460.0,0.00021917,6]
[366537017,1750311011156,5000.0,0.00021915,2]
[366537018,1750311011183,460.0,0.00021917,6]
[366537019,1750311011210,460.0,0.00021917,6]
[366537020,1750311012916,460.0,0.00021917,6]
[366537021,1750311013259,460.0,0.00021917,6]
[366537022,1750311013616,1383.36,0.00021917,6]
[366537023,1750311014576,430.0,0.00021917,6]
[366537024,1750311015872,460.0,0.00021917,6]
[366537025,1750311017039,460.0,0.00021917,6]
[366537026,1750311017930,460.0,0.00021917,6]
[366537027,1750311019924,253.6777619,0.00021917,6]
[366537028,1750311021406,460.0,0.00021917,6]
[366537029,1750311025573,460.0,0.00021917,6]
[366537030,1750311028509,460.0,0.00021917,6]
[366537031,1750311031068,460.0,0.00021917,6]
[366537032,1750311031333,460.0,0.00021917,6]
[366537047,1750311032012,-420.0,0.00022049,2]
[366537048,1750311032023,-233.02233069,0.00022091,2]
[366537049,1750311032034,-1807.4,0.00022181,10]
[366537050,1750311032043,-300.0,0.0002219,2]
[366537051,1750311032054,-500.0,0.0002219,2]
[366537052,1750311032064,-500.0,0.0002219,2]
[366537053,1750311032075,-460.0,0.00022191,6]
[366537054,1750311032086,-460.0,0.00022191,6]
[366537055,1750311032096,-400.0,0.00022191,6]
[366537056,1750311032106,-460.0,0.00022191,6]
[366537057,1750311032116,-225.67221227,0.00022191,6]
[366537058,1750311032398,-500.0,0.0002219,2]
[366537059,1750311032409,-500.0,0.0002219,2]
[366537060,1750311032419,-234.32778773,0.00022191,6]
[366537061,1750311032428,-460.0,0.00022191,6]
[366537062,1750311032438,-370.0,0.00022191,6]
[366537063,1750311032448,-460.0,0.00022191,6]
[366537064,1750311032458,-370.0,0.00022191,6]
[366537065,1750311032468,-340.02382723,0.00022191,6]
[366537066,1750311032478,-460.0,0.00022191,6]
[366537067,1750311032487,-460.0,0.00022191,6]
[366537068,1750311032497,-340.0,0.00022191,6]
[366537069,1750311032506,-460.0,0.00022191,6]
[366537070,1750311032516,-460.0,0.00022191,6]
[366537071,1750311032526,-460.0,0.00022191,6]
[366537072,1750311032537,-245.77611539,0.00022191,6]
[366537073,1750311032547,-370.0,0.00022191,6]
[366537074,1750311032556,-460.0,0.00022191,6]
[366537075,1750311032566,-426.29651446,0.00022191,6]
[366537076,1750311032575,-430.0,0.00022191,6]
[366537077,1750311032585,-400.0,0.00022191,6]
[366537078,1750311032594,-460.0,0.00022191,6]
[366537079,1750311032604,-444.90438896,0.00022191,6]
[366537080,1750311032613,-410.84331326,0.00022191,6]
[366537081,1750311032625,-189.74951083,0.00022191,6]
[366537082,1750311032635,-460.0,0.00022191,6]
[366537083,1750311032644,-391.50022909,0.00022191,6]
[366537084,1750311032654,-466.49355079,0.00022191,6]
[366537085,1750311032663,-359.67092726,0.00022191,6]
[366537086,1750311032673,-460.0,0.00022191,6]
[366537087,1750311032683,-460.0,0.00022191,6]
[366537088,1750311032693,-460.0,0.00022191,6]
[366537089,1750311032704,-460.0,0.00022191,6]
[366537090,1750311032714,-701.3,0.00022191,6]
[366537091,1750311032727,-460.0,0.00022191,6]
[366537092,1750311032737,-460.0,0.00022191,6]
[366537093,1750311032747,-460.0,0.00022191,6]
[366537094,1750311032756,-460.0,0.00022191,6]
[366537095,1750311032767,-460.0,0.00022191,6]
[366537096,1750311032777,-420.0,0.00022191,6]
[366537097,1750311032787,-460.0,0.00022191,6]
[366537098,1750311032797,-460.0,0.00022191,6]
[366537099,1750311032807,-522.17912101,0.00022191,6]
[366537100,1750311032816,-370.0,0.00022191,6]
[366537101,1750311032826,-400.0,0.00022191,6]
[366537102,1750311032836,-460.0,0.00022191,6]
[366537103,1750311032846,-460.0,0.00022191,6]
[366537104,1750311032855,-460.0,0.00022191,6]
[366537105,1750311032865,-460.0,0.00022191,6]
[366537106,1750311032875,-460.0,0.00022191,6]
[366537107,1750311032884,-460.0,0.00022191,6]
[366537108,1750311032894,-465.497221,0.00022191,6]
[366537109,1750311032903,-289.55818577,0.00022191,6]
[366537110,1750311032913,-460.0,0.00022191,6]
[366537111,1750311032922,-507.93,0.00022191,6]
[366537112,1750311032932,-315.52765172,0.00022191,6]
[366537113,1750311032941,-460.0,0.00022191,6]
[366537114,1750311032951,-460.0,0.00022191,6]
[366537115,1750311032960,-460.0,0.00022191,6]
[366537116,1750311032970,-460.0,0.00022191,6]
[366537117,1750311032980,-460.0,0.00022191,6]
[366537118,1750311032989,-460.0,0.00022191,6]
[366537119,1750311032999,-376.51758692,0.00022191,6]
[366537120,1750311033008,-1553.48,0.00022191,6]
[366537121,1750311033018,-460.0,0.00022191,6]
[366537122,1750311033027,-460.0,0.00022191,6]
[366537123,1750311033037,-460.0,0.00022191,6]
[366537124,1750311033047,-460.0,0.00022191,6]
[366537125,1750311033056,-460.0,0.00022191,6]
[366537126,1750311033066,-418.21302618,0.00022191,6]
[366537127,1750311033078,-460.0,0.00022191,6]
[366537128,1750311033087,-460.0,0.00022191,6]
[366537129,1750311033098,-460.0,0.00022191,6]
[366537130,1750311033107,-460.0,0.00022191,6]
[366537131,1750311033118,-460.0,0.00022191,6]
[366537132,1750311033128,-357.75993381,0.00022191,6]
[366537133,1750311033138,-460.0,0.00022191,6]
[366537134,1750311033148,-764.87,0.00022191,6]
[366537135,1750311033158,-234.59961805,0.00022191,6]
[366537136,1750311033168,-460.0,0.00022191,6]
[366537137,1750311033177,-460.0,0.00022191,6]
[366537138,1750311033187,-460.0,0.00022191,6]
[366537139,1750311033197,-460.0,0.00022191,6]
[366537140,1750311033207,-3021.55,0.00022191,6]
[366537141,1750311033217,-460.0,0.00022191,6]
[366537142,1750311033226,-546.21,0.00022191,6]
[366537143,1750311033236,-460.0,0.00022191,6]
[366537144,1750311033246,-460.0,0.00022191,6]
[366537145,1750311033256,-696.87,0.00022191,6]
[366537146,1750311033266,-460.0,0.00022191,6]
[366537147,1750311033277,-460.0,0.00022191,6]
[366537148,1750311033287,-719.96,0.00022191,6]
[366537149,1750311033298,-460.0,0.00022191,6]
[366537150,1750311033308,-460.0,0.00022191,6]
[366537151,1750311033318,-663.23,0.00022191,6]
[366537152,1750311033329,-460.0,0.00022191,6]
[366537153,1750311033340,-2699.02,0.00022191,6]
[366537154,1750311033350,-460.0,0.00022191,6]
[366537155,1750311033360,-460.0,0.00022191,6]
[366537156,1750311033370,-271.91339783,0.00022191,6]
[366537157,1750311033381,-512.79,0.00022191,6]
[366537158,1750311033392,-3451.43,0.00022191,6]
[366537159,1750311033402,-460.0,0.00022191,6]
[366537160,1750311033413,-2682.75,0.00022191,6]
[366537161,1750311033423,-460.0,0.00022191,6]
[366537162,1750311033434,-460.0,0.00022191,6]
[366537163,1750311033444,-460.0,0.00022191,6]
[366537164,1750311033454,-452.54088076,0.00022191,6]
[366537165,1750311033464,-460.0,0.00022191,6]
[366537166,1750311033474,-460.0,0.00022191,6]
[366537167,1750311033483,-556.31,0.00022191,6]
[366537168,1750311033493,-573.25,0.00022191,6]
[366537169,1750311033503,-460.0,0.00022191,6]
[366537170,1750311033513,-460.0,0.00022191,6]
[366537171,1750311033522,-518.75,0.00022191,6]
[366537172,1750311033532,-526.33314169,0.00022191,6]
[366537173,1750311033542,-460.0,0.00022191,6]
[366537174,1750311033552,-370.0,0.00022191,6]
[366537175,1750311033562,-1794.42,0.00022191,6]
[366537176,1750311033572,-407.83470848,0.00022191,6]
[366537177,1750311033582,-460.0,0.00022191,6]
[366537178,1750311033592,-460.0,0.00022191,6]
[366537179,1750311033602,-408.96473029,0.00022191,6]
[366537180,1750311033612,-460.0,0.00022191,6]
[366537181,1750311033621,-214.74654067,0.00022191,6]
[366537182,1750311033630,-3841.39,0.00022191,6]
[366537183,1750311033640,-2649.21,0.00022191,6]
[366537184,1750311033650,-460.0,0.00022191,6]
[366537185,1750311033660,-460.0,0.00022191,6]
[366537186,1750311033670,-460.0,0.00022191,6]
[366537187,1750311033680,-400.0,0.00022191,6]
[366537188,1750311033690,-460.0,0.00022191,6]
[366537189,1750311033699,-460.0,0.00022191,6]
[366537190,1750311033856,-569.98013154,0.00022191,6]
[366537191,1750311033866,-880.96,0.00022191,6]
[366537192,1750311033876,-3370.51,0.00022191,6]
[366537193,1750311033886,-460.0,0.00022191,6]
[366537194,1750311033895,-780.86,0.00022191,6]
[366537195,1750311033904,-1066.75,0.00022191,6]
[366537196,1750311033914,-460.0,0.00022191,6]
[366537197,1750311033923,-400.50828412,0.00022191,6]
[366537198,1750311033933,-411.69350052,0.00022191,6]
[366537199,1750311033942,-460.0,0.00022191,6]
[366537200,1750311033952,-460.0,0.00022191,6]
[366537201,1750311033962,-5142.92,0.00022191,6]
[366537202,1750311033971,-460.0,0.00022191,6]
[366537203,1750311033981,-506.63457666,0.00022191,6]
[366537204,1750311033990,-420.0,0.00022191,6]
[366537205,1750311034000,-466.44,0.00022191,6]
[366537206,1750311034010,-460.0,0.00022191,6]
[366537207,1750311034019,-460.0,0.00022191,6]
[366537208,1750311034029,-460.0,0.00022191,6]
[366537209,1750311034039,-460.0,0.00022191,6]
[366537210,1750311034048,-407.83855209,0.00022191,6]
[366537211,1750311034058,-1327.37,0.00022191,6]
[366537212,1750311034068,-545.54,0.00022191,6]
[366537213,1750311034078,-228.39771863,0.00022191,6]
[366537214,1750311034087,-841.97,0.00022191,6]
[366537215,1750311034098,-460.0,0.00022191,6]
[366537216,1750311034107,-460.0,0.00022191,6]
[366537217,1750311034117,-460.0,0.00022191,6]
[366537218,1750311034126,-460.0,0.00022191,6]
[366537219,1750311034135,-460.0,0.00022191,6]
[366537220,1750311034144,-1500.64,0.00022191,6]
[366537221,1750311034154,-472.8,0.00022191,6]
[366537222,1750311034163,-1570.55,0.00022191,6]
[366537223,1750311034173,-460.0,0.00022191,6]
[366537224,1750311034182,-1390.25,0.00022191,6]
[366537225,1750311034192,-460.0,0.00022191,6]
[366537226,1750311034202,-420.0,0.00022191,6]
[366537227,1750311034211,-516.41,0.00022191,6]
[366537228,1750311034220,-460.0,0.00022191,6]
[366537229,1750311034229,-483.54959332,0.00022191,6]
[366537230,1750311034239,-460.0,0.00022191,6]
[366537231,1750311034248,-460.0,0.00022191,6]
[366537232,1750311034257,-460.0,0.00022191,6]
[366537233,1750311034267,-460.0,0.00022191,6]
[366537234,1750311034276,-2267.91,0.00022191,6]
[366537235,1750311034286,-460.0,0.00022191,6]
[366537236,1750311034295,-525.33460416,0.00022191,6]
[366537237,1750311034305,-460.0,0.00022191,6]
[366537238,1750311034315,-460.0,0.00022191,6]
[366537239,1750311034324,-938.2,0.00022191,6]
[366537240,1750311034334,-460.0,0.00022191,6]
[366537241,1750311034344,-430.0,0.00022191,6]
[366537242,1750311034354,-460.0,0.00022191,6]
[366537243,1750311034364,-460.0,0.00022191,6]
[366537244,1750311034374,-460.0,0.00022191,6]
[366537245,1750311034385,-460.0,0.00022191,6]
[366537246,1750311034394,-708.33,0.00022191,6]
[366537247,1750311034403,-460.0,0.00022191,6]
[366537248,1750311034413,-400.0,0.00022191,6]
[366537249,1750311034423,-300.0,0.00022191,2]
[366537250,1750311034432,-460.0,0.00022191,6]
[366537251,1750311034442,-474.26,0.00022191,6]
[366537252,1750311034452,-460.0,0.00022191,6]
[366537253,1750311034461,-886.52,0.00022191,6]
[366537254,1750311034470,-460.0,0.00022191,6]
[366537255,1750311034480,-370.0,0.00022191,6]
[366537256,1750311034489,-460.0,0.00022191,6]
[366537257,1750311034499,-1383.36,0.00022191,6]
[366537258,1750311034510,-460.0,0.00022191,6]
[366537259,1750311034520,-187.84000442,0.00022191,6]
[366537260,1750311034529,-460.0,0.00022191,6]
[366537261,1750311034540,-532.36945495,0.00022191,6]
[366537262,1750311034549,-223.73951611,0.00022242,8]
[366537263,1750311034560,-642.36047434,0.00022261,2]
[366537264,1750311034570,-1032.16,0.00022305,2]
[366537265,1750311034580,-230.0259007,0.00022306,2]
[366537266,1750311034590,-160.0,0.00022306,2]
[366537267,1750311034600,-213.47708638,0.00022306,2]
[366537268,1750311034609,-424.78309573,0.00022306,2]
[366537269,1750311034619,-160.0,0.00022306,2]
[366537270,1750311034629,-845.93775772,0.00022306,2]
[366537271,1750311034639,-168.0,0.0002231,2]
[366537272,1750311034649,-365.6169836,0.00022329,2]
[366537273,1750311034659,-365.6169836,0.00022329,2]
[366537274,1750311034669,-365.6169836,0.00022329,2]
[366537275,1750311034679,-365.6169836,0.00022329,2]
[366537276,1750311034688,-155.4107927,0.00022438,2]
[366537277,1750311034698,-5000.0,0.00022463,2]
[366537278,1750311034708,-460.0,0.00022465,6]
[366537279,1750311034719,-460.0,0.00022465,6]
[366537280,1750311034729,-460.0,0.00022465,6]
[366537281,1750311034739,-460.0,0.00022465,6]
[366537282,1750311034749,-246.99922726,0.00022465,6]
[366537283,1750311034759,-319.93764939,0.00022465,6]
[366537284,1750311034768,-484.39596981,0.00022465,6]
[366537285,1750311034778,-460.0,0.00022465,6]
[366537286,1750311034787,-460.0,0.00022465,6]
[366537287,1750311034799,-460.0,0.00022465,6]
[366537288,1750311034809,-370.0,0.00022465,6]
[366537289,1750311034819,-370.0,0.00022465,6]
[366537290,1750311034828,-424.99,0.00022465,6]
[366537291,1750311034838,-460.0,0.00022465,6]
[366537292,1750311034848,-460.0,0.00022465,6]
[366537293,1750311034857,-460.0,0.00022465,6]
[366537294,1750311034866,-380.0,0.00022465,6]
[366537295,1750311034876,-701.3,0.00022465,6]
[366537296,1750311034886,-409.25404557,0.00022465,6]
[366537297,1750311034896,-460.0,0.00022465,6]
[366537298,1750311034906,-460.0,0.00022465,6]
[366537299,1750311034915,-460.0,0.00022465,6]
[366537300,1750311034924,-460.0,0.00022465,6]
[366537301,1750311034933,-370.0,0.00022465,6]
[366537302,1750311034943,-460.0,0.00022465,6]
[366537303,1750311034953,-460.0,0.00022465,6]
[366537304,1750311034962,-460.25439007,0.00022465,6]
[366537305,1750311034972,-460.0,0.00022465,6]
[366537306,1750311034982,-460.0,0.00022465,6]
[366537307,1750311034991,-460.0,0.00022465,6]
[366537308,1750311035001,-507.93,0.00022465,6]
[366537309,1750311035011,-460.0,0.00022465,6]
[366537310,1750311035020,-500.4602774,0.00022465,6]
[366537311,1750311035029,-460.0,0.00022465,6]
[366537312,1750311035038,-440.0,0.00022465,6]
[366537313,1750311035048,-460.0,0.00022465,6]
[366537314,1750311035057,-460.0,0.00022465,6]
[366537315,1750311035067,-1553.48,0.00022465,6]
[366537316,1750311035077,-460.0,0.00022465,6]
[366537317,1750311035087,-460.0,0.00022465,6]
[366537318,1750311035096,-460.0,0.00022465,6]
[366537319,1750311035106,-460.0,0.00022465,6]
[366537320,1750311035115,-460.0,0.00022465,6]
[366537321,1750311035124,-460.0,0.00022465,6]
[366537322,1750311035134,-458.0545317,0.00022465,6]
[366537323,1750311035145,-460.0,0.00022465,6]
[366537324,1750311035154,-460.0,0.00022465,6]
[366537325,1750311035164,-764.87,0.00022465,6]
[366537326,1750311035174,-460.0,0.00022465,6]
[366537327,1750311035183,-460.0,0.00022465,6]
[366537328,1750311035193,-462.23225103,0.00022465,6]
[366537329,1750311035204,-3021.55,0.00022465,6]
[366537330,1750311035213,-546.21,0.00022465,6]
[366537331,1750311035223,-460.0,0.00022465,6]
[366537332,1750311035232,-460.0,0.00022465,6]
[366537333,1750311035241,-543.66007297,0.00022465,6]
[366537334,1750311035250,-696.87,0.00022465,6]
[366537335,1750311035260,-460.0,0.00022465,6]
[366537336,1750311035269,-719.96,0.00022465,6]
[366537337,1750311035280,-460.0,0.00022465,6]
[366537338,1750311035289,-663.23,0.00022465,6]
[366537339,1750311035299,-2699.02,0.00022465,6]
[366537340,1750311035308,-460.0,0.00022465,6]
[366537341,1750311035318,-460.0,0.00022465,6]
[366537342,1750311035327,-512.79,0.00022465,6]
[366537343,1750311035337,-3451.43,0.00022465,6]
[366537344,1750311035347,-494.58468898,0.00022465,6]
[366537345,1750311035356,-2682.75,0.00022465,6]
[366537346,1750311035367,-460.0,0.00022465,6]
[366537347,1750311035376,-460.0,0.00022465,6]
[366537348,1750311035387,-460.0,0.00022465,6]
[366537349,1750311035397,-460.0,0.00022465,6]
[366537350,1750311035407,-556.31,0.00022465,6]
[366537351,1750311035416,-573.25,0.00022465,6]
[366537352,1750311035426,-460.0,0.00022465,6]
[366537353,1750311035435,-460.0,0.00022465,6]
[366537354,1750311035446,-1794.42,0.00022465,6]
[366537355,1750311035455,-460.0,0.00022465,6]
[366537356,1750311035464,-370.0,0.00022465,6]
[366537357,1750311035474,-460.0,0.00022465,6]
[366537358,1750311035483,-3841.39,0.00022465,6]
[366537359,1750311035493,-2649.21,0.00022465,6]
[366537360,1750311035502,-460.0,0.00022465,6]
[366537361,1750311035512,-460.0,0.00022465,6]
[366537362,1750311035521,-460.0,0.00022465,6]
[366537363,1750311035530,-460.0,0.00022465,6]
[366537364,1750311035540,-460.0,0.00022465,6]
[366537365,1750311035549,-880.96,0.00022465,6]
[366537366,1750311035559,-460.0,0.00022465,6]
[366537367,1750311035569,-3370.51,0.00022465,6]
[366537368,1750311035578,-780.86,0.00022465,6]
[366537369,1750311035588,-1066.75,0.00022465,6]
[366537370,1750311035597,-460.0,0.00022465,6]
[366537371,1750311035607,-400.0,0.00022465,6]
[366537372,1750311035617,-460.0,0.00022465,6]
[366537373,1750311035627,-5142.92,0.00022465,6]
[366537374,1750311035636,-466.44,0.00022465,6]
[366537375,1750311035646,-460.0,0.00022465,6]
[366537376,1750311035655,-460.0,0.00022465,6]
[366537377,1750311035664,-325.68118866,0.00022465,6]
[366537378,1750311035674,-460.0,0.00022465,6]
[366537379,1750311035683,-460.0,0.00022465,6]
[366537380,1750311035692,-1327.37,0.00022465,6]
[366537381,1750311035701,-545.54,0.00022465,6]
[366537382,1750311035711,-841.97,0.00022465,6]
[366537383,1750311035724,-460.0,0.00022465,6]
[366537384,1750311035733,-460.0,0.00022465,6]
[366537385,1750311035742,-460.0,0.00022465,6]
[366537386,1750311035752,-460.0,0.00022465,6]
[366537387,1750311035762,-1500.64,0.00022465,6]
[366537388,1750311035771,-472.8,0.00022465,6]
[366537389,1750311035780,-1570.55,0.00022465,6]
[366537390,1750311035791,-460.0,0.00022465,6]
[366537391,1750311035802,-1390.25,0.00022465,6]
[366537392,1750311035812,-151.0,0.00022465,7]
[366537393,1750311035821,-460.0,0.00022465,6]
[366537394,1750311035831,-151.0,0.00022465,7]
[366537395,1750311035840,-516.41,0.00022465,6]
[366537396,1750311035849,-440.0,0.00022465,6]
[366537397,1750311035858,-460.0,0.00022465,6]
[366537398,1750311035868,-460.0,0.00022465,6]
[366537399,1750311035877,-460.0,0.00022465,6]
[366537400,1750311035887,-460.0,0.00022465,6]
[366537401,1750311035896,-2267.91,0.00022465,6]
[366537402,1750311035905,-460.0,0.00022465,6]
[366537403,1750311035915,-411.34292989,0.00022465,6]
[366537404,1750311035924,-430.0,0.00022465,6]
[366537405,1750311035933,-938.2,0.00022465,6]
[366537406,1750311035943,-460.0,0.00022465,6]
[366537407,1750311035952,-460.0,0.00022465,6]
[366537408,1750311035961,-348.38,0.00022465,6]
[366537409,1750311035970,-708.33,0.00022465,6]
[366537410,1750311035980,-300.0,0.00022465,2]
[366537411,1750311035989,-460.0,0.00022465,6]
[366537412,1750311035998,-474.26,0.00022465,6]
[366537413,1750311036007,-886.52,0.00022465,6]
[366537414,1750311036015,-460.0,0.00022465,6]
[366537415,1750311036025,-373.30192872,0.00022465,6]
[366537416,1750311036034,-1383.36,0.00022465,6]
[366537417,1750311036043,-460.0,0.00022465,6]
[366537418,1750311036052,-460.0,0.00022465,6]
[366537419,1750311036061,-233.02233062,0.00022519,2]
[366537420,1750311036071,-1000.0,0.00022521,2]
[366537421,1750311036079,-4048.88830228,0.00022639,2]
[366537422,1750311036089,-223.73951611,0.00022674,8]
[366537423,1750311036098,-642.36047434,0.00022704,2]
[366537424,1750311036107,-153.0,0.00022712,2]
[366537425,1750311036116,-159.0225674,0.00022712,2]
[366537426,1750311036126,-174.8585811,0.00022712,2]
[366537427,1750311036135,-177.1918157,0.00022712,2]
[366537428,1750311036145,-159.0225674,0.00022712,2]
[366537429,1750311036154,-153.0,0.00022712,2]
[366537430,1750311036164,-153.0,0.00022712,2]
[366537431,1750311036173,-333.6565149,0.00022712,2]
[366537432,1750311036183,-153.0,0.00022712,2]
[366537433,1750311036192,-153.0,0.00022712,2]
[366537434,1750311036201,-574.3302288,0.00022712,2]
[366537435,1750311036211,-177.1918157,0.00022712,2]
[366537436,1750311036220,-153.0,0.00022712,2]
[366537437,1750311036230,-177.1918157,0.00022712,2]
[366537438,1750311036239,-574.3302288,0.00022712,2]
[366537439,1750311036248,-424.4974222,0.00022712,2]
[366537440,1750311036257,-177.1918157,0.00022712,2]
[366537441,1750311036266,-574.3302288,0.00022712,2]
[366537442,1750311036276,-574.3302288,0.00022712,2]
[366537443,1750311036286,-176.7543105,0.00022712,2]
[366537444,1750311036298,-177.1504183,0.00022712,2]
[366537445,1750311036307,-573.1268205,0.00022712,2]
[366537446,1750311036317,-153.0,0.00022712,2]
[366537447,1750311036326,-458.84595878,0.00022739,6]
[366537448,1750311036336,-370.0,0.00022739,6]
[366537449,1750311036346,-701.3,0.00022739,6]
[366537450,1750311036355,-460.0,0.00022739,6]
[366537451,1750311036365,-460.0,0.00022739,6]
[366537452,1750311036375,-460.0,0.00022739,6]
[366537453,1750311036384,-460.0,0.00022739,6]
[366537454,1750311036394,-507.93,0.00022739,6]
[366537455,1750311036403,-460.0,0.00022739,6]
[366537456,1750311036412,-460.0,0.00022739,6]
[366537457,1750311036422,-1553.48,0.00022739,6]
[366537458,1750311036431,-460.0,0.00022739,6]
[366537459,1750311036441,-460.0,0.00022739,6]
[366537460,1750311036555,-151.0,0.00022739,7]
[366537461,1750311036565,-179.340819,0.00022739,7]
[366537462,1750311036575,-764.87,0.00022739,6]
[366537463,1750311036584,-460.0,0.00022739,6]
[366537464,1750311036593,-151.0,0.00022739,7]
[366537465,1750311036604,-151.0,0.00022739,7]
[366537466,1750311036626,-151.0,0.00022739,7]
[366537467,1750311036647,-460.0,0.00022739,6]
[366537468,1750311036667,-3021.55,0.00022739,6]
[366537469,1750311036689,-546.21,0.00022739,6]
[366537470,1750311036714,-372.36962802,0.00022739,6]
[366537471,1750311036737,-460.0,0.00022739,6]
[366537472,1750311036758,-176.704777,0.00022739,7]
[366537473,1750311036783,-696.87,0.00022739,6]
[366537474,1750311036810,-460.0,0.00022739,6]
[366537475,1750311036831,-719.96,0.00022739,6]
[366537476,1750311036853,-663.23,0.00022739,6]
[366537477,1750311036874,-151.0,0.00022739,7]
[366537478,1750311036899,-2699.02,0.00022739,6]
[366537479,1750311036922,-460.0,0.00022739,6]
[366537480,1750311036944,-460.0,0.00022739,6]
[366537481,1750311036964,-512.79,0.00022739,6]
[366537482,1750311036973,-3451.43,0.00022739,6]
[366537483,1750311036982,-2682.75,0.00022739,6]
[366537484,1750311036992,-460.0,0.00022739,6]
[366537485,1750311037001,-460.0,0.00022739,6]
[366537486,1750311037010,-556.31,0.00022739,6]
[366537487,1750311037019,-573.25,0.00022739,6]
[366537488,1750311037028,-460.0,0.00022739,6]
[366537489,1750311037038,-1794.42,0.00022739,6]
[366537490,1750311037047,-440.0,0.00022739,6]